fUST/lending_fUST_20251212
["ID","MTS","AMOUNT","RATE_DAILY","PERIOD"]
[398354928,1765551068231,-833.25,0.00015027,2]
[398354929,1765551068241,-833.25,0.00015027,2]
[398354930,1765551068252,-833.25,0.00015027,2]
[398354931,1765551068262,-833.25,0.00015027,2]
[398354932,1765551068273,-833.25,0.00015027,2]
[398354933,1765551068283,-833.25,0.00015027,2]
[398354934,1765551068293,-833.25448987,0.00015027,2]
[398354935,1765551068303,-100000.0,0.00015028,2]
[398354936,1765551068313,-800.0,0.00015068,2]
[398354937,1765551068323,-1200.0,0.00015316,2]
[398354938,1765551068333,-460.0,0.00015342,2]
[398354939,1765551068343,-2000.0,0.00015342,2]
[398354940,1765551068354,-2000.0,0.00015342,2]
[398354941,1765551068364,-2000.0,0.00015342,2]
[398354942,1765551068374,-2000.0,0.00015342,2]
[398354943,1765551068384,-2000.0,0.00015342,2]
[398354944,1765551068394,-2000.0,0.00015342,2]
[398354945,1765551068404,-2000.0,0.00015342,2]
[398354946,1765551068415,-151.0,0.000154,2]
[398354947,1765551068425,-2500.0,0.00015464,2]
[398354948,1765551068436,-2500.0,0.00015464,2]
[398354949,1765551068446,-2500.0,0.00015464,2]
[398354950,1765551068456,-1500.0,0.00015464,2]
[398354951,1765551068466,-2500.0,0.00015464,2]
[398354952,1765551068477,-425.86985941,0.00015464,2]
[398354953,1765551068487,-2500.0,0.00015464,2]
[398354954,1765551068498,-2500.0,0.00015464,2]
[398354955,1765551068508,-2500.0,0.00015464,2]
[398354956,1765551068518,-2500.0,0.00015464,2]
[398354957,1765551068529,-1500.0,0.00015464,2]
[398354958,1765551068540,-1000.0,0.00015576,2]
[398354959,1765551068550,-157.93903884,0.00015699,3]
[398354960,1765551068560,-18481.31874318,0.00015738,2]
[398354961,1765551068570,-1500.0,0.00015864,2]
[398354962,1765551068580,-231.0,0.00015875,2]
[398354963,1765551068592,-560.0,0.0001589,2]
[398354964,1765551068608,-2500.0,0.0001589,2]
[398354965,1765551068618,-2500.0,0.0001589,2]
[398354966,1765551068628,-500.0,0.0001589,2]
[398354967,1765551068639,-2500.0,0.0001589,2]
[398354968,1765551068649,-2223.95119122,0.0001589,2]
[398354969,1765551068659,-2500.0,0.0001589,2]
[398354970,1765551068672,-2500.0,0.0001589,2]
[398354971,1765551068682,-160.43557245,0.000159,2]
[398354972,1765551068693,-160.43557243,0.00015996,2]
[398354973,1765551068704,-3000.0,0.00016012,2]
[398354974,1765551068714,-3000.0,0.00016012,2]
[398354975,1765551068724,-3000.0,0.00016012,2]
[398354976,1765551068734,-3000.0,0.00016012,2]
[398354977,1765551068750,-3000.0,0.00016012,2]
[398354978,1765551068760,-3000.0,0.00016012,2]
[398354979,1765551068770,-1500.0,0.00016012,2]
[398354980,1765551068781,-3000.0,0.00016012,2]
[398354981,1765551068790,-16707.81854205,0.0001608,3]
[398354982,1765551068801,-151.0,0.000161,2]
[398354983,1765551068812,-1600.0,0.00016164,2]
[398354984,1765551068822,-1800.0,0.00016412,2]
[398354985,1765551068833,-500.0,0.00016438,2]
[398354986,1765551068844,-590.7960953,0.00016438,2]
[398354987,1765551068855,-660.0,0.00016438,2]
[398354988,1765551068866,-500.0,0.00016438,2]
[398354989,1765551068877,-154.37656047,0.00016438,2]
[398354990,1765551068889,-163.59785044,0.00016438,2]
[398354991,1765551068900,-2798.31140917,0.00016438,2]
[398354992,1765551068911,-500.0,0.00016438,2]
[398354993,1765551068925,-3000.0,0.00016438,2]
[398354994,1765551068936,-3000.0,0.00016438,2]
[398354995,1765551068946,-3000.0,0.00016438,2]
[398354996,1765551068957,-259.10838795,0.00016438,2]
[398354997,1765551068967,-3500.0,0.0001656,2]
[398354998,1765551068977,-2527.70513452,0.0001656,2]
[398354999,1765551068988,-2278.04545937,0.0001656,2]
[398355000,1765551068998,-3500.0,0.0001656,2]
[398355001,1765551069009,-3500.0,0.0001656,2]
[398355002,1765551069019,-3500.0,0.0001656,2]
[398355003,1765551069030,-3500.0,0.0001656,2]
[398355004,1765551069040,-151.0,0.000168,2]
[398355005,1765551069051,-2100.0,0.0001696,2]
[398355006,1765551069061,-760.0,0.00016986,2]
[398355007,1765551069072,-1000.0,0.00016986,2]
[398355008,1765551069083,-3500.0,0.00016986,2]
[398355009,1765551069094,-3500.0,0.00016986,2]
[398355010,1765551069104,-3500.0,0.00016986,2]
[398355011,1765551069114,-1777.76947787,0.00017108,2]
[398355012,1765551069125,-4000.0,0.00017108,2]
[398355013,1765551069135,-4000.0,0.00017108,2]
[398355014,1765551069146,-4000.0,0.00017108,2]
[398355015,1765551069156,-4000.0,0.00017108,2]
[398355016,1765551069166,-1000.0,0.00017134,2]
[398355017,1765551069178,-244.0,0.00017134,2]
[398355018,1765551069189,-151.0,0.0001726,2]
[398355019,1765551069200,-151.0,0.0001726,2]
[398355020,1765551069210,-151.0,0.0001726,2]
[398355021,1765551069221,-451.735203,0.0001726,2]
[398355022,1765551069231,-451.735203,0.0001726,2]
[398355023,1765551069241,-451.735203,0.0001726,2]
[398355024,1765551069252,-451.735203,0.0001726,2]
[398355025,1765551069262,-2400.0,0.0001726,2]
[398355026,1765551069272,-160.43557243,0.00017297,2]
[398355027,1765551069283,-151.0,0.000174,2]
[398355028,1765551069293,-327.73239873,0.000174,14]
[398355029,1765551069560,-2400.0,0.00017508,2]
[398355030,1765551069571,-860.0,0.00017534,2]
[398355031,1765551069581,-1500.0,0.00017534,2]
[398355032,1765551069591,-4000.0,0.00017534,2]
[398355033,1765551069602,-4000.0,0.00017534,2]
[398355034,1765551069611,-4000.0,0.00017534,2]
[398355035,1765551069621,-4500.0,0.00017656,2]
[398355036,1765551069631,-4500.0,0.00017656,2]
[398355037,1765551069640,-4500.0,0.00017656,2]
[398355038,1765551069650,-4500.0,0.00017656,2]
[398355039,1765551069660,-20168.85635547,0.000178,3]
[398355040,1765551069671,-258.0,0.00017875,2]
[398355041,1765551069681,-162.0,0.0001789,3]
[398355042,1765551069690,-960.0,0.00018082,2]
[398355043,1765551069700,-2000.0,0.00018082,2]
[398355044,1765551069709,-4500.0,0.00018082,2]
[398355045,1765551069719,-4500.0,0.00018082,2]
[398355046,1765551069728,-4500.0,0.00018082,2]
[398355047,1765551069738,-3295.50482274,0.00018204,2]
[398355048,1765551069751,-5000.0,0.00018204,2]
[398355049,1765551069761,-5000.0,0.00018204,2]
[398355050,1765551069770,-151.0,0.00018236,2]
[398355051,1765551069780,-151.0,0.00018236,2]
[398355052,1765551069790,-151.0,0.00018236,2]
[398355053,1765551069801,-151.0,0.00018236,2]
[398355054,1765551069810,-160.43557243,0.00018598,2]
[398355055,1765551069820,-1060.0,0.0001863,2]
[398355056,1765551069829,-436.71660874,0.0001863,2]
[398355057,1765551069839,-5000.0,0.0001863,2]
[398355058,1765551069848,-5000.0,0.0001863,2]
[398355059,1765551069857,-726.91492213,0.0001863,2]
[398355060,1765551069867,-5500.0,0.00018752,2]
[398355061,1765551069877,-5500.0,0.00018752,2]
[398355062,1765551069886,-1000.0,0.00018847,10]
[398355063,1765551069896,-492.0,0.00018847,10]
[398355064,1765551069905,-302.8183302,0.000189,2]
[398355065,1765551069914,-302.8183302,0.000189,2]
[398355066,1765551069927,-159.69128902,0.00019,2]
[398355067,1765551069936,-150.79517714,0.00019,2]
[398355068,1765551069946,-342.14414694,0.00019,2]
[398355069,1765551069956,-302.8183302,0.00019089,2]
[398355070,1765551069965,-302.8183302,0.00019089,2]
[398355071,1765551069975,-2000.0,0.00019178,2]
[398355072,1765551069984,-383.082,0.00019178,2]
[398355073,1765551069995,-514.603,0.00019178,2]
[398355074,1765551070006,-1000.0,0.00019178,2]
[398355075,1765551070016,-1000.0,0.00019178,2]
[398355076,1765551070026,-1000.0,0.00019178,2]
[398355077,1765551070036,-1000.0,0.00019178,2]
[398355078,1765551070046,-1000.0,0.00019178,2]
[398355079,1765551070057,-1000.0,0.00019178,2]
[398355080,1765551070066,-1000.0,0.00019178,2]
[398355081,1765551070076,-1000.0,0.00019178,2]
[398355082,1765551070086,-1000.0,0.00019178,2]
[398355083,1765551070095,-181.275,0.00019178,2]
[398355084,1765551070105,-475.0,0.00019178,2]
[398355085,1765551070115,-475.0,0.00019178,2]
[398355086,1765551070125,-475.0,0.00019178,2]
[398355087,1765551070135,-475.0,0.00019178,2]
[398355088,1765551070145,-475.0,0.00019178,2]
[398355089,1765551070155,-475.0,0.00019178,2]
[398355090,1765551070164,-475.0,0.00019178,2]
[398355091,1765551070178,-475.0,0.00019178,2]
[398355092,1765551070189,-475.0,0.00019178,2]
[398355093,1765551070198,-475.0,0.00019178,2]
[398355094,1765551070209,-475.0,0.00019178,2]
[398355095,1765551070218,-475.0,0.00019178,2]
[398355096,1765551070228,-475.0,0.00019178,2]
[398355097,1765551070237,-475.0,0.00019178,2]
[398355098,1765551070247,-475.0,0.00019178,2]
[398355099,1765551070257,-475.0,0.00019178,2]
[398355100,1765551070267,-475.0,0.00019178,2]
[398355101,1765551070277,-475.0,0.00019178,2]
[398355102,1765551070287,-475.0,0.00019178,2]
[398355103,1765551070297,-475.0,0.00019178,2]
[398355104,1765551070307,-475.0,0.00019178,2]
[398355105,1765551070317,-475.0,0.00019178,2]
[398355106,1765551070327,-475.0,0.00019178,2]
[398355107,1765551070340,-475.0,0.00019178,2]
[398355108,1765551070350,-475.0,0.00019178,2]
[398355109,1765551070359,-475.0,0.00019178,2]
[398355110,1765551070369,-475.0,0.00019178,2]
[398355111,1765551070379,-475.0,0.00019178,2]
[398355112,1765551070388,-475.0,0.00019178,2]
[398355113,1765551070398,-475.0,0.00019178,2]
[398355114,1765551070408,-475.0,0.00019178,2]
[398355115,1765551070418,-475.0,0.00019178,2]
[398355116,1765551070432,-475.0,0.00019178,2]
[398355117,1765551070442,-475.0,0.00019178,2]
[398355118,1765551070452,-475.0,0.00019178,2]
[398355119,1765551070462,-475.0,0.00019178,2]
[398355120,1765551070472,-475.0,0.00019178,2]
[398355121,1765551070482,-475.0,0.00019178,2]
[398355122,1765551070492,-475.0,0.00019178,2]
[398355123,1765551070502,-475.0,0.00019178,2]
[398355124,1765551070514,-475.0,0.00019178,2]
[398355125,1765551070524,-475.0,0.00019178,2]
[398355126,1765551070534,-475.0,0.00019178,2]
[398355127,1765551070545,-475.0,0.00019178,2]
[398355128,1765551070555,-475.0,0.00019178,2]
[398355129,1765551070565,-475.0,0.00019178,2]
[398355130,1765551070575,-475.0,0.00019178,2]
[398355131,1765551070585,-475.0,0.00019178,2]
[398355132,1765551070595,-475.0,0.00019178,2]
[398355133,1765551070604,-475.0,0.00019178,2]
[398355134,1765551070616,-475.0,0.00019178,2]
[398355135,1765551070626,-475.0,0.00019178,2]
[398355136,1765551070635,-475.0,0.00019178,2]
[398355137,1765551070645,-475.0,0.00019178,2]
[398355138,1765551070656,-475.0,0.00019178,2]
[398355139,1765551070665,-475.0,0.00019178,2]
[398355140,1765551070680,-475.0,0.00019178,2]
[398355141,1765551070690,-475.0,0.00019178,2]
[398355142,1765551070699,-475.0,0.00019178,2]
[398355143,1765551070709,-475.0,0.00019178,2]
[398355144,1765551070719,-475.0,0.00019178,2]
[398355145,1765551070729,-475.0,0.00019178,2]
[398355146,1765551070739,-475.0,0.00019178,2]
[398355147,1765551070752,-475.0,0.00019178,2]
[398355148,1765551070762,-475.0,0.00019178,2]
[398355149,1765551070771,-475.0,0.00019178,2]
[398355150,1765551070781,-475.0,0.00019178,2]
[398355151,1765551070790,-475.0,0.00019178,2]
[398355152,1765551070800,-475.0,0.00019178,2]
[398355153,1765551070810,-475.0,0.00019178,2]
[398355154,1765551070820,-475.0,0.00019178,2]
[398355155,1765551070829,-475.0,0.00019178,2]
[398355156,1765551070839,-475.0,0.00019178,2]
[398355157,1765551070848,-475.0,0.00019178,2]
[398355158,1765551070858,-475.0,0.00019178,2]
[398355159,1765551070868,-475.0,0.00019178,2]
[398355160,1765551070878,-475.0,0.00019178,2]
[398355161,1765551070888,-475.0,0.00019178,2]
[398355162,1765551070897,-475.0,0.00019178,2]
[398355163,1765551070907,-475.0,0.00019178,2]
[398355164,1765551070918,-475.0,0.00019178,2]
[398355165,1765551070930,-475.0,0.00019178,2]
[398355166,1765551070940,-475.0,0.00019178,2]
[398355167,1765551070949,-475.0,0.00019178,2]
[398355168,1765551070958,-475.0,0.00019178,2]
[398355169,1765551070968,-1160.0,0.00019178,2]
[398355170,1765551070978,-4161.12361439,0.00019178,2]
[398355171,1765551070987,-5000.0,0.00019178,2]
[398355172,1765551070998,-5000.0,0.00019178,2]
[398355173,1765551071007,-5000.0,0.00019178,2]
[398355174,1765551071017,-5000.0,0.00019178,2]
[398355175,1765551071027,-5000.0,0.00019178,2]
[398355176,1765551071036,-5000.0,0.00019178,2]
[398355177,1765551071049,-5000.0,0.00019178,2]
[398355178,1765551071059,-5000.0,0.00019178,2]
[398355179,1765551071068,-5000.0,0.00019178,2]
[398355180,1765551071078,-5000.0,0.00019178,2]
[398355181,1765551071088,-5000.0,0.00019178,2]
[398355182,1765551071098,-5000.0,0.00019178,2]
[398355183,1765551071108,-2000.00665975,0.00019178,2]
[398355184,1765551071120,-150.0,0.00019178,2]
[398355185,1765551071130,-4763.79271532,0.00019178,2]
[398355186,1765551071139,-5500.0,0.00019178,2]
[398355187,1765551071149,-36445.8,0.000192,2]
[398355188,1765551071159,-175.304852,0.000192,2]
[398355189,1765551071168,-151.0,0.000192,2]
[398355190,1765551071179,-151.0,0.000192,2]
[398355191,1765551071189,-451.735203,0.000192,2]
[398355192,1765551071198,-451.735203,0.000192,2]
[398355193,1765551071207,-451.735203,0.000192,2]
[398355194,1765551071218,-451.735203,0.000192,2]
[398355195,1765551071227,-1099.81,0.000192,2]
[398355196,1765551071237,-302.8183302,0.00019278,2]
[398355197,1765551071248,-302.8183302,0.00019278,2]
[398355198,1765551071258,-6000.0,0.000193,2]
[398355199,1765551071267,-1325.86554847,0.000193,2]
[398355200,1765551071278,-300.0,0.00019315,2]
[398355201,1765551071288,-450.0,0.00019452,2]
[398355202,1765551071297,-302.8183302,0.00019467,2]
[398355203,1765551071307,-302.8183302,0.00019467,2]
[398355204,1765551071316,-169.9935241,0.000195,2]
[398355205,1765551071326,-401.0,0.00019566,5]
[398355206,1765551071335,-272.0,0.00019566,5]
[398355207,1765551071345,-600.0,0.00019589,2]
[398355208,1765551071354,-302.8183302,0.00019656,2]
[398355209,1765551071363,-302.8183302,0.00019656,2]
[398355210,1765551071373,-1260.0,0.00019726,2]
[398355211,1765551071382,-701.86962225,0.00019726,2]
[398355212,1765551071391,-6000.0,0.00019726,2]
[398355213,1765551071401,-342.14414694,0.00019771,17]
[398355214,1765551071410,-454.2274953,0.00019845,4]
[398355215,1765551071422,-454.2274953,0.00019845,4]
[398355216,1765551071431,-6500.0,0.00019848,2]
[398355217,1765551071441,-1599.766996,0.0001986,5]
[398355218,1765551071451,-285.0,0.00019875,2]
[398355219,1765551071460,-1000.0,0.0001988,5]
[398355220,1765551071470,-160.43557243,0.00019899,2]
[398355221,1765551071479,-1000.0,0.000199,5]
[398355222,1765551071489,-1000.0,0.0001992,5]
[398355223,1765551071498,-1000.0,0.0001994,5]
[398355224,1765551071507,-1000.0,0.0001996,5]
[398355225,1765551071517,-2000.0,0.00019979,7]
[398355226,1765551071526,-1000.0,0.0001998,5]
[398355227,1765551071536,-895.0,0.0002,2]
[398355228,1765551071545,-1042.0,0.0002,2]
[398355229,1765551071555,-401.53,0.0002,3]
[398355230,1765551071564,-500.0,0.0002,2]
[398355231,1765551071573,-500.0,0.0002,2]
[398355232,1765551071583,-17888.94737669,0.0002,2]
[398355233,1765551071592,-2856.80843117,0.0002,2]
[398355234,1765551071601,-1012.0,0.0002,2]
[398355235,1765551071611,-341.60964067,0.0002,2]
[398355236,1765551071621,-10857.0,0.0002,5]
[398355237,1765551071631,-1004.0,0.0002,6]
[398355238,1765551071640,-1615.48402672,0.0002,2]
[398355239,1765551071651,-14644.66548063,0.0002,2]
[398355240,1765551071661,-370.1873498,0.0002,2]
[398355241,1765551071672,-23000.0,0.0002,2]
[398355242,1765551071682,-201.92734454,0.0002,2]
[398355243,1765551071691,-502.41701609,0.0002,2]
[398355244,1765551071701,-200.2536154,0.0002,2]
[398355245,1765551071710,-20473.504462,0.0002,2]
[398355246,1765551071719,-822.141,0.0002,5]
[398355247,1765551071728,-204.51136013,0.0002,2]
[398355248,1765551071738,-805.0,0.0002,2]
[398355249,1765551071752,-194.2206861,0.0002,2]
[398355250,1765551071761,-150.0,0.0002,2]
[398355251,1765551071771,-154.53625818,0.0002,2]
[398355252,1765551071780,-500.0,0.0002,5]
[398355253,1765551071789,-40109.08762527,0.0002,2]
[398355254,1765551071799,-151.0,0.0002,2]
[398355255,1765551071808,-151.0,0.0002,2]
[398355256,1765551071817,-151.0,0.0002,2]
[398355257,1765551071827,-151.0,0.0002,2]
[398355258,1765551071836,-151.0,0.0002,2]
[398355259,1765551071846,-151.0,0.0002,2]
[398355260,1765551071855,-1000.0,0.0002,5]
[398355261,1765551071864,-451.735203,0.0002,2]
[398355262,1765551071874,-451.735203,0.0002,2]
[398355263,1765551071884,-451.735203,0.0002,2]
[398355264,1765551071894,-451.735203,0.0002,2]
[398355265,1765551071904,-151.4091651,0.0002,2]
[398355266,1765551071977,-150.0,0.0002,10]
[398355267,1765551071987,-454.2274953,0.00020034,4]
[398355268,1765551071997,-454.2274953,0.00020034,4]
[398355269,1765551072007,-300.0,0.000201,7]
[398355270,1765551072016,-277.11719284,0.0002013,2]
[398355271,1765551072026,-18481.31874318,0.00020176,2]
[398355272,1765551072036,-1500.0,0.00020187,2]
[398355273,1765551072046,-454.2274953,0.00020223,4]
[398355274,1765551072055,-454.2274953,0.00020223,4]
[398355275,1765551072065,-6500.0,0.00020274,2]
[398355276,1765551072074,-1360.0,0.00020274,2]
[398355277,1765551072084,-4795.82724219,0.00020396,2]
[398355278,1765551072095,-454.2274953,0.00020412,4]
[398355279,1765551072105,-454.2274953,0.00020412,4]
[398355280,1765551072115,-2000.0,0.0002048,7]
[398355281,1765551072125,-1099.81,0.000205,2]
[398355282,1765551072136,-342.14414694,0.00020542,32]
[398355283,1765551072146,-4380.429199,0.00020548,2]
[398355284,1765551072156,-454.6057912,0.00020601,4]
[398355285,1765551072165,-454.6057912,0.00020601,4]
[398355286,1765551072178,-1383.75705824,0.0002061,2]
[398355287,1765551072188,-1000.0,0.00020732,10]
[398355288,1765551072199,-791.0,0.00020732,10]
[398355289,1765551072210,-7000.0,0.00020822,2]
[398355290,1765551072219,-1460.0,0.00020822,2]
[398355291,1765551072230,-255.38401774,0.000209,2]
[398355292,1765551072239,-8901.39683431,0.000209,2]
[398355293,1765551072248,-2000.0,0.00020981,7]
[398355294,1765551072258,-10000.0,0.00021,5]
[398355295,1765551072267,-276.20676659,0.00021,2]
[398355296,1765551072276,-50000.0,0.00021,2]
[398355297,1765551072286,-205636.45979169,0.00021,2]
[398355298,1765551072299,-500.99,0.00021,2]
[398355299,1765551072311,-26800.0,0.00021,2]
[398355300,1765551072321,-160.0,0.00021,14]
[398355301,1765551072331,-3000.0,0.00021,2]
[398355302,1765551072340,-151.0,0.00021,2]
[398355303,1765551072351,-151.0,0.00021,2]
[398355304,1765551072362,-151.0,0.00021,2]
[398355305,1765551072371,-151.0,0.00021,2]
[398355306,1765551072381,-151.0,0.00021,2]
[398355307,1765551072391,-151.0,0.00021,2]
[398355308,1765551072400,-167.086035,0.00021,2]
[398355309,1765551072410,-151.0,0.00021,2]
[398355310,1765551072419,-156.517819,0.00021,2]
[398355311,1765551072431,-451.735203,0.00021,2]
[398355312,1765551072441,-451.735203,0.00021,2]
[398355313,1765551072450,-451.735203,0.00021,2]
[398355314,1765551072459,-451.735203,0.00021,2]
[398355315,1765551072468,-151.0,0.00021,2]
[398355316,1765551072478,-151.0,0.00021,2]
[398355317,1765551072487,-151.0,0.00021,2]
[398355318,1765551072497,-152.399307,0.00021,2]
[398355319,1765551072506,-330.313595,0.00021,2]
[398355320,1765551072516,-151.0,0.00021,2]
[398355321,1765551072525,-151.0,0.00021,2]
[398355322,1765551072535,-330.313595,0.00021,2]
[398355323,1765551072544,-330.313595,0.00021,2]
[398355324,1765551072553,-330.313595,0.00021,2]
[398355325,1765551072562,-1062.017478,0.00021,2]
[398355326,1765551072572,-1062.017478,0.00021,2]
[398355327,1765551072581,-1062.017478,0.00021,2]
[398355328,1765551072591,-1062.017478,0.00021,2]
[398355329,1765551072600,-151.0,0.00021,2]
[398355330,1765551072609,-672.132359,0.00021,2]
[398355331,1765551072618,-151.0,0.00021,2]
[398355332,1765551072628,-193.207713,0.00021,2]
[398355333,1765551072637,-672.132359,0.00021,2]
[398355334,1765551072647,-151.0,0.00021,2]
[398355335,1765551072656,-672.132359,0.00021,2]
[398355336,1765551072666,-151.0,0.00021,2]
[398355337,1765551072676,-672.132359,0.00021,2]
[398355338,1765551072686,-151.0,0.00021,2]
[398355339,1765551072695,-151.0,0.00021,2]
[398355340,1765551072705,-151.0,0.00021,2]
[398355341,1765551072715,-454.480524,0.00021,2]
[398355342,1765551072725,-454.480524,0.00021,2]
[398355343,1765551072735,-454.480524,0.00021,2]
[398355344,1765551072747,-454.480524,0.00021,2]
[398355345,1765551072757,-229.017571,0.00021,2]
[398355346,1765551072767,-479.085641,0.00021,2]
[398355347,1765551072777,-151.0,0.00021,2]
[398355348,1765551072786,-479.085641,0.00021,2]
[398355349,1765551072796,-151.0,0.00021,2]
[398355350,1765551072805,-479.085641,0.00021,2]
[398355351,1765551072814,-287.715144,0.00021,2]
[398355352,1765551072824,-479.085641,0.00021,2]
[398355353,1765551072834,-151.0,0.00021,2]
[398355354,1765551072843,-151.0,0.00021,2]
[398355355,1765551072853,-151.0,0.00021,2]
[398355356,1765551072863,-151.0,0.00021,2]
[398355357,1765551072872,-151.0,0.00021,2]
[398355358,1765551072882,-3000.0,0.0002101,2]
[398355359,1765551072891,-3000.0,0.0002102,2]
[398355360,1765551072901,-3000.0,0.0002103,2]
[398355361,1765551072910,-3000.0,0.0002104,2]
[398355362,1765551072920,-3000.0,0.0002105,2]
[398355363,1765551072932,-3000.0,0.0002106,2]
[398355364,1765551072941,-3000.0,0.0002107,2]
[398355365,1765551072950,-3000.0,0.0002108,2]
[398355366,1765551072959,-3000.0,0.0002109,2]
[398355367,1765551072968,-3000.0,0.000211,2]
[398355368,1765551072977,-3000.0,0.0002111,2]
[398355369,1765551072987,-1793.2210082,0.0002112,2]
[398355370,1765551073007,-414.45031978,0.0002112,2]
[398355371,1765551073018,-792.32867202,0.0002112,2]
[398355372,1765551073029,-2121.14863864,0.0002113,2]
[398355377,1765551241949,5000.0,0.000101,9]
[398355380,1765551503691,-333.33333333,0.00020567,32]
[398355381,1765551503739,-308.0,0.00021383,120]
[398355382,1765551503796,-308.0,0.00022452,120]
[398355383,1765551503844,-308.0,0.00023575,120]
[398355384,1765551503891,-159.69128901,0.00023686,30]
[398355385,1765551503938,-150.79517713,0.00023686,30]
[398355386,1765551503986,-212.5324583,0.00023698,30]
[398355387,1765551504034,-154.98143481,0.00023748,30]
[398355388,1765551504086,-308.0,0.00024754,120]
[398355389,1765551504138,-200.0,0.00025,120]
[398355390,1765551504191,-308.0,0.00025991,120]
[398355391,1765551504239,-587.25293559,0.00026,30]
[398355392,1765551504293,-1000.0,0.00027079,30]
[398355393,1765551504347,-1000.0,0.00027079,30]
[398355394,1765551504400,-1000.0,0.00027079,30]
[398355395,1765551504451,-308.0,0.00027291,120]
[398355396,1765551504501,-150.0,0.00027397,48]
[398355397,1765551504550,-150.0,0.00027534,48]
[398355398,1765551504597,-150.0,0.00027671,48]
[398355399,1765551504643,-197.65275899,0.00027808,48]
[398355400,1765551504693,-308.0,0.00028655,120]
[398355401,1765551504739,-1049.4639545,0.00028767,120]
[398355402,1765551504792,-1000.0,0.00029787,30]
[398355403,1765551504843,-1000.0,0.00029787,30]
[398355404,1765551504895,-564.0,0.00029787,30]
[398355405,1765551504945,-176.0,0.00029973,37]
[398355406,1765551504995,-1019.48479188,0.0003,120]
[398355407,1765551505045,-308.0,0.00030088,120]
[398355408,1765551505091,-262.1122018,0.00030137,120]
[398355409,1765551505140,-308.0,0.00031593,120]
[398355410,1765551505187,-1053.59,0.00032,30]
[398355411,1765551505238,-1053.59,0.0003206,30]
[398355412,1765551505293,-1053.59,0.0003212,30]
[398355413,1765551505343,-1053.59,0.0003218,30]
[398355414,1765551505395,-1053.59,0.0003224,30]
[398355415,1765551505446,-1053.59,0.000323,30]
[398355416,1765551505496,-1053.59,0.0003236,30]
[398355417,1765551505546,-1053.59,0.0003242,30]
[398355418,1765551505596,-1053.59,0.0003248,30]
[398355419,1765551505647,-1053.59,0.0003254,30]
[398355420,1765551505697,-1053.59,0.000326,30]
[398355421,1765551505748,-1053.59,0.0003266,30]
[398355422,1765551505803,-1999.0,0.00032876,120]
[398355423,1765551505852,-295.30641892,0.00033,30]
[398355424,1765551505900,-1380.35,0.00033,30]
[398355425,1765551505951,-199.0,0.0003315,30]
[398355426,1765551506002,-537.705887,0.00033165,31]
[398355427,1765551506050,-537.705887,0.00033165,31]
[398355428,1765551506101,-537.705887,0.00033165,31]
[398355429,1765551506152,-537.705892,0.00033165,31]
[398355430,1765551506204,-308.0,0.00033172,120]
[398355431,1765551506256,-174.0,0.0003326,59]
[398355432,1765551506307,-205.0,0.0003342,35]
[398355433,1765551506362,-199.0,0.00033972,31]